bitfinex/quotes_BTCUSD_20241226
["timestamp","ask_amount","ask_price","bid_price","bid_amount"]
[1735224479139,0.0011714,95858.0,95857.0,0.60635952]
[1735224480076,0.00013176,95858.0,95857.0,0.60635952]
[1735224480510,0.0831,95911.0,95869.0,0.408618]
[1735224480718,0.291628,95911.0,95869.0,0.76819132]
[1735224480920,0.2086702,95924.0,95869.0,0.81589132]
[1735224481175,0.208512,95918.0,95869.0,0.81589132]
[1735224481705,0.208512,95918.0,95869.0,0.88229132]
[1735224481950,0.208512,95918.0,95869.0,0.90269426]
[1735224482148,0.15,95912.0,95897.0,0.1]
[1735224482327,0.208523,95913.0,95900.0,0.10398632]
[1735224482547,0.00068921,95902.0,95901.0,0.00104257]
[1735224482754,0.00068921,95902.0,95901.0,0.20502889]
[1735224483373,0.00068921,95902.0,95901.0,0.20398632]
[1735224483573,0.00068921,95902.0,95901.0,0.20502884]
[1735224483734,0.00068921,95902.0,95901.0,0.10502884]
[1735224483941,0.00068921,95902.0,95901.0,0.10398632]
[1735224484203,0.00068921,95902.0,95900.0,0.00059057]
[1735224484371,0.441648,95901.0,95900.0,0.00059057]
[1735224484583,0.441648,95901.0,95900.0,0.00559057]
[1735224484778,0.2331,95901.0,95900.0,0.00559057]
[1735224485006,0.15,95894.0,95875.0,0.1]
[1735224485203,0.208565,95893.0,95878.0,0.10398632]
[1735224485377,0.15,95894.0,95878.0,0.10398632]
[1735224485589,0.15,95892.0,95879.0,0.00104279]
[1735224485786,0.15,95892.0,95874.0,0.208607]
[1735224485787,0.29051024,95890.0,95880.0,0.10398632]
[1735224486006,0.15,95892.0,95881.0,0.01144151]
[1735224486256,0.15,95892.0,95882.0,0.10398632]
[1735224486413,0.15,95892.0,95883.0,0.0010428]
[1735224486621,0.0831,95901.0,95884.0,0.10502912]
[1735224486827,0.00068921,95902.0,95891.0,0.208569]
[1735224487032,0.00068921,95902.0,95898.0,0.31254032]
[1735224487228,0.00068921,95902.0,95901.0,0.20398632]
[1735224487426,0.00068921,95902.0,95901.0,0.20502881]
[1735224488343,0.0001716,95917.0,95903.0,0.1]
[1735224488546,0.00032641,95904.0,95903.0,0.20502876]
[1735224488746,0.00032641,95904.0,95903.0,0.28809704]
[1735224488946,0.00032641,95904.0,95903.0,0.2870546]
[1735224489153,0.00032641,95904.0,95903.0,0.3870546]
[1735224489779,0.00032641,95904.0,95903.0,0.3940546]
[1735224490207,0.00032641,95904.0,95903.0,0.3870546]
[1735224490571,0.00032641,95904.0,95903.0,0.3960546]
[1735224490823,0.00032641,95904.0,95903.0,0.4190546]
[1735224491059,0.00032641,95904.0,95903.0,0.4953546]
[1735224491473,0.0001716,95917.0,95916.0,0.408515]
[1735224491694,0.0001716,95917.0,95916.0,0.57420562]
[1735224492418,0.0001716,95917.0,95916.0,0.59720562]
[1735224492621,0.0001716,95917.0,95916.0,0.64440562]
[1735224493086,0.0001716,95917.0,95916.0,0.65240562]
[1735224493281,0.0001714,95942.0,95941.0,0.208461]
[1735224493478,0.0001714,95942.0,95941.0,0.36414032]
[1735224493479,0.00032655,95942.0,95941.0,0.36414032]
[1735224494244,0.00032655,95942.0,95941.0,0.46414032]
[1735224494458,0.00032655,95942.0,95941.0,0.58714032]
[1735224495102,0.00032655,95942.0,95941.0,1.12794032]
[1735224495306,0.00032655,95942.0,95941.0,1.00494032]
[1735224495515,0.00032655,95942.0,95941.0,0.10398632]
[1735224495770,0.00032655,95942.0,95941.0,0.31161892]
[1735224495983,0.00032655,95942.0,95941.0,0.31757689]
[1735224496184,0.00032655,95942.0,95941.0,0.30457689]
[1735224496390,0.00032655,95942.0,95941.0,0.11357689]
[1735224496595,0.00032655,95942.0,95941.0,0.12257689]
[1735224496803,0.15032655,95942.0,95941.0,0.00959057]
[1735224497005,0.15032655,95942.0,95941.0,0.00059057]
[1735224497258,0.15032655,95942.0,95941.0,0.01759057]
[1735224497503,0.1492962,95942.0,95941.0,0.01759057]
[1735224497693,0.288711,95918.0,95917.0,0.0921271]
[1735224498305,0.208562,95895.0,95883.0,0.0921271]
[1735224498458,0.208562,95895.0,95889.0,0.10398632]
[1735224498911,0.208528,95911.0,95893.0,0.10398632]
[1735224499085,0.208528,95911.0,95894.0,0.00104261]
[1735224499280,0.0802,95918.0,95903.0,0.10398632]
[1735224499489,0.0802,95918.0,95905.0,0.10398632]
[1735224499692,0.288712,95918.0,95906.0,0.04135768]
[1735224499899,0.0802,95918.0,95907.0,0.10398632]
[1735224500511,0.208513,95917.0,95907.0,0.10398632]
[1735224500992,0.208528,95911.0,95907.0,0.10398632]
[1735224501211,0.208528,95911.0,95907.0,0.10598632]
[1735224501575,0.0802,95918.0,95908.0,0.10398632]
[1735224501799,0.15,95917.0,95908.0,0.10398632]
[1735224502005,0.155,95917.0,95908.0,0.10398632]
[1735224502421,0.208529,95910.0,95908.0,0.10398632]
[1735224503053,0.208529,95910.0,95903.0,0.00015515]
[1735224503054,0.358541,95904.0,95903.0,0.00074541]
[1735224504975,0.358541,95904.0,95903.0,0.00215515]
[1735224505413,0.362541,95904.0,95903.0,0.00215515]
[1735224505628,0.362541,95904.0,95903.0,0.10614147]
[1735224505830,0.004,95904.0,95903.0,0.10614147]
[1735224506243,0.004,95904.0,95903.0,0.10414147]
[1735224506481,0.004,95904.0,95903.0,0.20518398]
[1735224506701,0.004,95904.0,95903.0,0.20618398]
[1735224506929,0.0764,95933.0,95920.0,0.208506]
[1735224507158,0.0764,95933.0,95921.0,0.12483692]
[1735224507363,0.208454,95944.0,95922.0,0.10398632]
[1735224507485,0.208454,95944.0,95923.0,0.00104228]
[1735224507722,0.284849,95947.0,95932.0,0.10398632]
[1735224507889,0.208445,95949.0,95933.0,0.00104221]
[1735224508085,0.208445,95949.0,95934.0,0.10502852]
[1735224508334,0.41689,95949.0,95935.0,0.01050285]
[1735224508537,0.41689,95949.0,95936.0,0.10398632]
[1735224509174,0.208445,95949.0,95936.0,0.10398632]
[1735224509385,0.208445,95949.0,95941.0,0.10398632]
[1735224510010,0.000171,95942.0,95941.0,0.10398632]
[1735224510421,0.20863,95942.0,95941.0,0.10398632]
[1735224510833,0.35863,95942.0,95941.0,0.10798632]
[1735224511101,0.35863,95942.0,95941.0,0.10598632]
[1735224511473,0.35863,95942.0,95941.0,0.10798632]
[1735224511674,0.35863,95942.0,95941.0,0.10598632]
[1735224512690,0.150171,95942.0,95941.0,0.10398632]
[1735224513098,0.150171,95942.0,95941.0,0.10698632]
[1735224513480,0.150171,95942.0,95941.0,0.10398632]
[1735224513863,0.150171,95942.0,95941.0,0.10498632]
[1735224514270,0.000171,95942.0,95941.0,0.10398632]
[1735224514478,0.000171,95942.0,95941.0,0.11538495]
[1735224514680,0.000171,95942.0,95941.0,0.11638495]
[1735224514908,0.000171,95942.0,95941.0,0.21638495]
[1735224515112,0.000171,95942.0,95941.0,0.23838495]
[1735224515932,0.000171,95942.0,95941.0,0.21438495]
[1735224516136,0.0001714,95945.0,95944.0,0.2]
[1735224516362,0.0001714,95945.0,95944.0,0.43201439]
[1735224516570,0.0001714,95945.0,95944.0,0.97177264]
[1735224517478,0.0001714,95945.0,95944.0,1.31296945]
[1735224517706,0.0001714,95945.0,95944.0,1.31996945]
[1735224517863,0.15,95986.0,95965.0,0.208408]
[1735224518284,0.15,95986.0,95968.0,0.10398632]
[1735224518494,0.000171,95991.0,95968.0,0.10502809]
[1735224518701,0.000171,95991.0,95968.0,0.20502809]
[1735224519109,0.000171,95991.0,95980.0,0.208375]
[1735224519318,0.208355,95990.0,95982.0,0.10398632]
[1735224519845,0.15,95989.0,95982.0,0.11438495]
[1735224520095,0.10736607,95992.0,95982.0,0.11438495]
[1735224520294,0.208352,95991.0,95982.0,0.11438495]
[1735224520694,0.208352,95991.0,95982.0,0.11638495]
[1735224520917,0.10736607,95992.0,95982.0,0.11638495]
[1735224521119,0.208352,95991.0,95983.0,0.03263979]
[1735224521346,0.208367,95985.0,95984.0,0.10398632]
[1735224521501,0.208361,95988.0,95984.0,0.10398632]
[1735224521705,0.0001712,95998.0,95984.0,0.10398632]
[1735224521913,0.208365,95985.0,95982.0,0.002]
[1735224522338,0.15,95978.0,95971.0,0.0211751]
[1735224522570,0.15,95978.0,95972.0,0.10398632]
[1735224522771,0.15,95974.0,95971.0,0.00015515]
[1735224522968,0.15,95978.0,95971.0,0.00015515]
[1735224523173,0.436194,95972.0,95971.0,0.00015515]
[1735224524673,0.358394,95972.0,95971.0,0.10614147]
[1735224525125,0.67099,95972.0,95971.0,0.11675562]
[1735224525325,0.52099,95972.0,95971.0,0.10614147]
[1735224525938,0.52099,95972.0,95971.0,0.10714147]
[1735224526145,0.52099,95972.0,95971.0,0.10414147]
[1735224526318,0.52099,95972.0,95971.0,0.10614147]
[1735224526480,0.52099,95972.0,95971.0,0.10914147]
[1735224526678,0.52099,95972.0,95971.0,0.10714147]
[1735224527116,0.52099,95972.0,95971.0,0.10914147]
[1735224527562,0.52099,95972.0,95971.0,0.10714147]
[1735224527806,0.52099,95972.0,95971.0,0.10414147]
[1735224528016,0.52099,95972.0,95971.0,0.10614147]
[1735224528222,0.52099,95972.0,95971.0,0.10914147]
[1735224528473,0.52099,95972.0,95971.0,0.10614147]
[1735224528889,0.52099,95972.0,95971.0,0.10814147]
[1735224529724,0.52099,95972.0,95971.0,0.10614147]
[1735224529929,0.52099,95972.0,95971.0,0.11875562]
[1735224530565,0.52099,95972.0,95971.0,0.31675562]
[1735224530775,0.52099,95972.0,95971.0,0.34175562]
[1735224530991,0.52099,95972.0,95971.0,0.33975562]
[1735224531206,0.52099,95972.0,95971.0,0.33775562]
[1735224531447,0.52099,95972.0,95971.0,0.33875562]
[1735224531648,0.52099,95972.0,95971.0,0.34375562]
[1735224531854,0.52099,95972.0,95971.0,0.35275562]
[1735224532290,0.0001712,96000.0,95996.0,0.208342]
[1735224532492,0.0001712,96000.0,95996.0,0.35399722]
[1735224532728,0.0001712,96000.0,95996.0,0.14565522]
[1735224533507,0.0001712,96000.0,95996.0,0.14669676]
[1735224534399,0.0001712,96000.0,95996.0,0.14769676]
[1735224534797,0.0011712,95997.0,95996.0,0.14769676]
[1735224535031,0.0011712,95997.0,95996.0,0.14669676]
[1735224535295,0.0001712,95997.0,95996.0,0.14669676]
[1735224535478,0.0001712,95997.0,95996.0,0.11402786]
[1735224535780,0.0001712,95997.0,95996.0,0.10902786]
[1735224536287,0.0001712,95997.0,95996.0,0.11702786]
[1735224536741,0.0001712,95997.0,95996.0,0.11302786]
[1735224536936,0.0001712,95997.0,95996.0,0.12930553]
[1735224537143,0.0001712,95997.0,95996.0,0.12649653]
[1735224537545,0.0001712,95997.0,95996.0,0.13495899]
[1735224538142,0.0001712,95997.0,95996.0,0.11417732]
[1735224539602,0.0001712,95997.0,95996.0,0.013]
[1735224540422,0.0001712,95997.0,95996.0,0.008]
[1735224540630,0.0001712,95997.0,95996.0,0.01]
[1735224540838,0.0001712,95997.0,95974.0,0.00059012]
[1735224540839,0.358387,95975.0,95974.0,0.00059012]
[1735224541055,0.434287,95975.0,95974.0,0.00059012]
[1735224541261,0.433787,95975.0,95974.0,0.00059012]
[1735224541470,0.482687,95975.0,95974.0,0.00059012]
[1735224541887,0.208391,95973.0,95971.0,0.00032615]
[1735224542101,0.15,95972.0,95971.0,0.00032615]
[1735224542522,0.15,95972.0,95971.0,0.10431247]
[1735224542723,0.332687,95975.0,95971.0,0.10431247]
[1735224542724,0.001,95975.0,95971.0,0.11474372]
[1735224542926,0.001,95975.0,95972.0,0.10398632]
[1735224543329,0.208389,95974.0,95972.0,0.10398632]
[1735224544154,0.001,95975.0,95972.0,0.10398632]
[1735224544354,0.001,95975.0,95972.0,0.1050281]
[1735224544535,0.15,95986.0,95972.0,0.10398632]
[1735224544772,0.208384,95977.0,95972.0,0.10398632]
[1735224544983,0.15,95974.0,95971.0,0.00091627]
[1735224545193,0.2989,95972.0,95971.0,0.00091627]
[1735224545411,0.1989,95972.0,95971.0,0.00091627]
[1735224546038,0.1989,95972.0,95971.0,0.00032615]
[1735224546884,0.208448,95947.0,95946.0,0.00059012]
[1735224547090,0.434648,95947.0,95946.0,0.00059012]
[1735224547308,0.20847,95938.0,95911.0,0.09249976]
[1735224547521,0.208516,95916.0,95912.0,0.10398632]
[1735224547743,0.0805,95914.0,95911.0,0.09308991]
[1735224547952,0.2635533,95913.0,95911.0,0.09249976]
[1735224548559,0.2635533,95913.0,95911.0,0.09349976]
[1735224548763,0.48975988,95912.0,95911.0,0.09265491]
[1735224548966,0.48975988,95912.0,95911.0,0.00015515]
[1735224548967,0.51779402,95912.0,95911.0,0.00015515]
[1735224549382,1.01331521,95912.0,95911.0,0.00015515]
[1735224549797,1.01331521,95912.0,95911.0,0.00115515]
[1735224550009,0.358541,95904.0,95903.0,8.55e-05]
[1735224550240,0.381541,95904.0,95903.0,0.00067565]
[1735224550459,0.358541,95904.0,95903.0,0.00067565]
[1735224550893,0.358541,95904.0,95903.0,8.55e-05]
[1735224551327,0.360541,95904.0,95903.0,8.55e-05]
[1735224552167,0.006,95904.0,95903.0,0.10407182]
[1735224552404,0.006,95904.0,95903.0,0.114479]
[1735224552629,0.004,95904.0,95903.0,0.10407182]
[1735224553536,0.002,95904.0,95903.0,0.10407182]
[1735224554011,0.15,95917.0,95903.0,0.10407182]
[1735224554188,0.15,95917.0,95904.0,0.10398632]
[1735224554393,0.15,95913.0,95904.0,0.10398632]
[1735224554933,0.208528,95910.0,95904.0,0.10398632]
[1735224555137,0.15,95913.0,95904.0,0.10398632]
[1735224555947,0.15,95916.0,95904.0,0.10398632]
[1735224556188,0.2306549,95933.0,95904.0,0.10398632]
[1735224556397,0.01294549,95932.0,95904.0,0.10398632]
[1735224556618,0.01294549,95932.0,95903.0,0.00067562]
[1735224556619,0.15,95905.0,95903.0,0.00067562]
[1735224556826,0.15,95905.0,95904.0,0.007]
[1735224556998,0.15,95905.0,95904.0,0.003]
[1735224557405,0.358541,95904.0,95903.0,0.00067562]
[1735224557820,0.6884014,95904.0,95903.0,8.55e-05]
[1735224558024,0.74767142,95904.0,95903.0,8.55e-05]
[1735224559243,1.26903142,95904.0,95903.0,8.55e-05]
[1735224559610,1.015201,95904.0,95903.0,0.0010855]
[1735224560192,1.06943688,95904.0,95903.0,0.0010855]
[1735224560403,1.07043688,95904.0,95903.0,0.0010855]
[1735224561025,1.039201,95904.0,95903.0,0.0010855]
[1735224562068,1.33909,95904.0,95903.0,0.0010855]
[1735224562264,1.29171988,95904.0,95903.0,0.0010855]
[1735224562495,1.07043688,95904.0,95903.0,0.0010855]
[1735224562703,1.21306988,95904.0,95903.0,0.0010855]
[1735224562938,1.67709034,95904.0,95903.0,5e-07]
[1735224563096,0.358602,95876.0,95875.0,0.0001708]
[1735224563296,0.358602,95876.0,95875.0,0.00068861]
[1735224563297,0.879962,95876.0,95875.0,0.00068861]
[1735224564465,0.358641,95858.0,95857.0,0.00067562]
[1735224564666,0.358641,95858.0,95857.0,0.10481715]
[1735224564872,0.15,95872.0,95857.0,0.10481715]
[1735224565082,0.67136,95872.0,95860.0,0.10398632]
[1735224565331,0.52136,95872.0,95864.0,0.10398632]
[1735224565766,0.208626,95865.0,95864.0,0.10398632]
[1735224565967,0.729986,95865.0,95864.0,0.10398632]
[1735224566201,0.729986,95865.0,95857.0,0.00524071]
[1735224566202,0.208641,95858.0,95857.0,0.00524071]
[1735224566396,0.208641,95858.0,95857.0,0.10422703]
[1735224567264,0.2817411,95858.0,95857.0,0.00024071]
[1735224567467,0.15,95863.0,95857.0,0.00024071]
[1735224567629,0.208641,95858.0,95857.0,0.00024071]
[1735224568064,0.358641,95858.0,95857.0,0.00024071]
[1735224568262,0.15,95857.0,95826.0,0.077]
[1735224568484,0.208683,95839.0,95838.0,0.00059019]
[1735224568842,0.208683,95839.0,95838.0,0.10457651]
[1735224569334,0.23991888,95839.0,95838.0,0.00059019]
[1735224569533,0.38991888,95839.0,95838.0,0.00059019]
[1735224569738,0.41795302,95839.0,95838.0,0.00059019]
[1735224570336,0.94031302,95839.0,95838.0,0.00859019]
[1735224570534,0.980043,95839.0,95838.0,0.005]
[1735224571559,0.358698,95832.0,95831.0,0.00035516]
[1735224571761,0.880058,95832.0,95831.0,0.00035516]
[1735224571967,0.67136,95832.0,95831.0,0.10434148]
[1735224572397,0.52136,95832.0,95831.0,0.10434148]
[1735224573005,0.52136,95832.0,95831.0,0.00035516]
[1735224573006,0.73270583,95832.0,95831.0,0.00035516]
[1735224573205,0.76494171,95832.0,95831.0,0.00035516]
[1735224573395,0.67236,95832.0,95831.0,0.001]
[1735224573754,0.67136,95832.0,95831.0,0.001]
[1735224573903,0.67436,95832.0,95831.0,0.001]
[1735224574522,0.52436,95832.0,95831.0,0.10498632]
[1735224574687,0.52436,95832.0,95831.0,0.10398632]
[1735224574894,0.52536,95832.0,95831.0,0.10398632]
[1735224575412,0.52136,95832.0,95831.0,0.10398632]
[1735224575800,0.52736,95832.0,95831.0,0.10698632]
[1735224576003,0.67136,95832.0,95831.0,0.10698632]
[1735224576198,0.67136,95832.0,95831.0,0.10398632]
[1735224576482,0.67136,95832.0,95831.0,0.10798632]
[1735224576812,0.67136,95832.0,95831.0,0.10698632]
[1735224577006,0.76270583,95832.0,95831.0,0.004]
[1735224577204,0.67136,95832.0,95831.0,0.004]
[1735224577849,0.70259588,95832.0,95831.0,0.001]
[1735224578050,0.70259588,95832.0,95831.0,0.004]
[1735224578274,0.85363002,95832.0,95831.0,0.004]
[1735224578476,0.85363002,95832.0,95820.0,0.00059019]
[1735224578477,0.581722,95821.0,95820.0,0.00059019]
[1735224578719,0.15,95820.0,95815.0,8.54e-05]
[1735224578918,0.03123588,95819.0,95815.0,8.54e-05]
[1735224579132,0.15,95816.0,95815.0,8.54e-05]
[1735224579469,0.52136,95816.0,95815.0,0.10407172]
[1735224579677,0.52136,95816.0,95815.0,0.11454645]
[1735224579990,0.52136,95816.0,95815.0,0.10407172]
[1735224580175,0.52136,95816.0,95815.0,0.10507172]
[1735224580552,0.52136,95816.0,95815.0,0.10407172]
[1735224581181,0.52136,95816.0,95815.0,0.10607172]
[1735224581555,0.52136,95816.0,95815.0,0.10407172]
[1735224581959,0.52136,95816.0,95815.0,0.10707172]
[1735224582597,0.001,95816.0,95815.0,0.10407172]
[1735224582973,0.15,95828.0,95815.0,0.10407172]
[1735224583227,0.20873,95818.0,95813.0,0.00059019]
[1735224583440,0.4409538,95830.0,95808.0,0.00067559]
[1735224583441,0.208748,95809.0,95808.0,0.00067559]
[1735224583606,0.208748,95809.0,95808.0,0.00059019]
[1735224583851,0.358748,95809.0,95808.0,0.00059019]
[1735224584587,0.358748,95809.0,95799.0,8.56e-05]
[1735224584797,0.358768,95800.0,95799.0,0.00067581]
[1735224584999,0.358768,95800.0,95799.0,8.56e-05]
[1735224585820,0.358768,95800.0,95799.0,0.0030856]
[1735224586013,0.37528909,95800.0,95799.0,0.0040856]
[1735224586214,0.37528909,95800.0,95799.0,0.0030856]
[1735224586575,0.37628909,95800.0,95799.0,0.0040856]
[1735224586773,0.37528909,95800.0,95799.0,0.0030856]
[1735224586979,0.37528909,95800.0,95799.0,8.56e-05]
[1735224587198,0.36792271,95800.0,95799.0,0.0050856]
[1735224587607,0.39915859,95800.0,95799.0,0.0050856]
[1735224587758,0.42010859,95800.0,95799.0,8.56e-05]
[1735224587957,0.38887271,95800.0,95799.0,8.56e-05]
[1735224588164,0.46992271,95800.0,95799.0,8.56e-05]
[1735224588368,0.99184271,95800.0,95799.0,8.56e-05]
[1735224588577,0.98284271,95800.0,95799.0,8.56e-05]
[1735224588791,0.98884271,95800.0,95799.0,8.56e-05]
[1735224589025,1.11582903,95800.0,95799.0,8.56e-05]
[1735224589221,1.11582903,95800.0,95799.0,6e-07]
[1735224589222,1.75413705,95800.0,95799.0,6e-07]
[1735224589477,1.32549905,95800.0,95799.0,6e-07]
[1735224589791,1.28526317,95800.0,95799.0,6e-07]
[1735224590224,1.29526317,95800.0,95799.0,6e-07]
[1735224590428,0.661785,95792.0,95791.0,6e-07]
[1735224590598,1.57292619,95792.0,95791.0,6e-07]
[1735224590769,1.63219621,95792.0,95791.0,6e-07]
[1735224591923,1.60496033,95792.0,95791.0,6e-07]
[1735224592587,1.60996033,95792.0,95791.0,6e-07]
[1735224592796,1.60496033,95792.0,95791.0,6e-07]
[1735224592997,1.57692619,95792.0,95791.0,6e-07]
[1735224593201,1.57792619,95792.0,95791.0,6e-07]
[1735224593407,1.57292619,95792.0,95791.0,6e-07]
[1735224593815,1.57792619,95792.0,95791.0,6e-07]
[1735224595823,1.67792619,95792.0,95791.0,6e-07]
[1735224596025,1.73719621,95792.0,95791.0,6e-07]
[1735224596467,1.73719621,95792.0,95791.0,2e-07]
[1735224596878,1.73577377,95792.0,95791.0,2e-07]
[1735224597050,1.73477377,95792.0,95791.0,2e-07]
[1735224598130,1.73077377,95792.0,95791.0,2e-07]
[1735224598332,0.1,95768.0,95761.0,8.55e-05]
[1735224598503,0.358851,95762.0,95761.0,8.55e-05]
[1735224599728,0.358851,95762.0,95761.0,0.00060309]
[1735224600767,0.880771,95762.0,95761.0,0.00060309]
[1735224601010,0.880771,95762.0,95761.0,0.00260309]
[1735224601555,1.358933,95762.0,95761.0,0.00260309]
[1735224601727,1.03500688,95762.0,95761.0,0.00260309]
[1735224601962,1.003771,95762.0,95761.0,0.00260309]
[1735224602196,1.18475732,95762.0,95761.0,9e-08]
[1735224602358,1.28475732,95762.0,95761.0,9e-08]
[1735224602690,1.34402734,95762.0,95761.0,9e-08]
[1735224603106,1.34402734,95762.0,95751.0,1e-06]
[1735224603107,0.658872,95752.0,95751.0,1e-06]
[1735224603299,0.2,95736.0,95735.0,8.55e-05]
[1735224603432,0.78812819,95736.0,95735.0,0.00067575]
[1735224603633,1.64164121,95736.0,95735.0,0.00067575]
[1735224604079,1.64164121,95736.0,95724.0,8.57e-05]
[1735224604080,0.408931,95725.0,95724.0,8.57e-05]
[1735224604282,1.44883732,95725.0,95724.0,8.57e-05]
[1735224604457,1.144851,95725.0,95724.0,8.57e-05]
[1735224604697,1.24883732,95725.0,95724.0,8.57e-05]
[1735224604895,1.37183732,95725.0,95724.0,8.57e-05]
[1735224605096,1.144851,95725.0,95724.0,8.57e-05]
[1735224605497,1.144851,95725.0,95724.0,0.00024044]
[1735224605701,1.76092834,95725.0,95724.0,0.00024044]
[1735224606902,1.76592834,95725.0,95724.0,0.00024044]
[1735224607080,1.602672,95725.0,95724.0,0.00024044]
[1735224607432,1.47710488,95725.0,95724.0,0.00024044]
[1735224607635,1.446869,95725.0,95724.0,0.00024044]
[1735224607857,1.145851,95725.0,95724.0,0.00024044]
[1735224608053,1.144851,95725.0,95724.0,0.00024044]
[1735224608231,1.94999032,95725.0,95724.0,0.00024044]
[1735224608431,1.51895232,95725.0,95724.0,0.00024044]
[1735224608839,1.37783732,95725.0,95724.0,0.00024044]
[1735224609040,1.37283732,95725.0,95724.0,0.00024044]
[1735224609304,1.7626632,95725.0,95724.0,0.00024044]
[1735224609516,1.79069734,95725.0,95724.0,0.00024044]
[1735224609684,1.78569734,95725.0,95724.0,0.00024044]
[1735224610066,1.78969734,95725.0,95724.0,4.4e-07]
[1735224610267,1.53210734,95725.0,95724.0,4.4e-07]
[1735224610703,1.53710734,95725.0,95724.0,4.4e-07]
[1735224611247,1.53610734,95725.0,95724.0,4.4e-07]
[1735224611452,1.54210734,95725.0,95724.0,0.00100044]
[1735224611756,1.48283732,95725.0,95724.0,0.00100044]
[1735224611896,1.47183732,95725.0,95724.0,4.4e-07]
[1735224612102,0.2,95718.0,95717.0,0.0442155]
[1735224612303,0.5011,95711.0,95710.0,9e-07]
[1735224612503,1.52143907,95711.0,95710.0,9e-07]
[1735224612775,1.54947321,95711.0,95710.0,9e-07]
[1735224613055,0.1,95672.0,95650.0,0.0769]
[1735224613190,0.8278243,95672.0,95650.0,0.0769]
[1735224613414,0.880967,95672.0,95650.0,0.0769]
[1735224613619,0.67192,95672.0,95651.0,0.0010454]
[1735224613846,0.67192,95672.0,95665.0,0.00067583]
[1735224614264,0.67192,95672.0,95671.0,0.00035546]
[1735224614866,1.5443432,95672.0,95671.0,4.6e-07]
[1735224615039,1.05817634,95672.0,95671.0,4.6e-07]
[1735224615517,1.09890632,95672.0,95671.0,4.6e-07]
[1735224616253,1.1301422,95672.0,95671.0,4.6e-07]
[1735224616898,1.1391422,95672.0,95671.0,4.6e-07]
[1735224617306,1.1421422,95672.0,95671.0,4.6e-07]
[1735224617500,1.08790632,95672.0,95671.0,4.6e-07]
[1735224617675,0.98490632,95672.0,95671.0,4.6e-07]
[1735224618017,1.11090632,95672.0,95671.0,4.6e-07]
[1735224618213,0.97890632,95672.0,95671.0,4.6e-07]
[1735224618433,1.07890632,95672.0,95671.0,4.6e-07]
[1735224618634,1.11090632,95672.0,95671.0,4.6e-07]
[1735224618841,1.10190632,95672.0,95671.0,4.6e-07]
[1735224619411,1.09890632,95672.0,95671.0,4.6e-07]
[1735224619609,1.09890632,95672.0,95671.0,8.616e-05]
[1735224619837,0.659075,95659.0,95658.0,9.9e-07]
[1735224620010,0.359202,95601.0,95582.0,0.007]
[1735224620208,0.359202,95601.0,95600.0,0.02139655]
[1735224620209,0.459202,95601.0,95600.0,0.02139655]
[1735224620408,0.459202,95601.0,95600.0,0.02191514]
[1735224620607,0.359202,95601.0,95600.0,0.02191514]
[1735224620856,0.359202,95601.0,95600.0,0.00058859]
[1735224621463,0.360202,95601.0,95600.0,0.00058859]
[1735224621710,0.882122,95601.0,95600.0,0.00058859]
[1735224622322,0.67292,95601.0,95600.0,0.00058859]
[1735224623132,0.67192,95601.0,95600.0,0.00058859]
[1735224623507,0.67392,95601.0,95600.0,0.10457491]
[1735224623716,0.52392,95601.0,95600.0,0.10457491]
[1735224624041,0.52392,95601.0,95600.0,0.00058859]
[1735224624042,0.52192,95601.0,95600.0,0.00058859]
[1735224624487,0.52492,95601.0,95600.0,0.00058859]
[1735224624688,0.52192,95601.0,95600.0,0.00058859]
[1735224625241,0.52292,95601.0,95600.0,0.00058859]
[1735224625848,0.67292,95601.0,95600.0,0.00058859]
[1735224626452,0.67192,95601.0,95600.0,0.00058859]
[1735224627364,0.67492,95601.0,95600.0,0.00058859]
[1735224627572,0.67192,95601.0,95600.0,0.00058859]
[1735224628006,0.67392,95601.0,95600.0,0.00058859]
[1735224628600,0.67192,95601.0,95600.0,0.00058859]
[1735224629014,0.87790632,95601.0,95600.0,0.00058859]
[1735224629238,0.97790632,95601.0,95600.0,0.00058859]
[1735224629635,0.77392,95601.0,95600.0,0.00058859]
[1735224629998,0.67392,95601.0,95600.0,0.00058859]
[1735224630399,0.67192,95601.0,95600.0,0.00058859]
[1735224630612,0.67392,95601.0,95600.0,0.00058859]
[1735224630815,0.68092,95601.0,95600.0,0.00058859]
[1735224631012,0.67192,95601.0,95600.0,0.00058859]
[1735224631558,0.67892,95601.0,95600.0,0.00058859]
[1735224631768,0.67737145,95601.0,95600.0,0.00058859]
[1735224632010,0.68437145,95601.0,95600.0,0.00058859]
[1735224632424,0.98135777,95601.0,95600.0,0.00058859]
[1735224632622,1.08311877,95601.0,95600.0,0.00058859]
[1735224633060,1.08511877,95601.0,95600.0,0.00058859]
[1735224633255,0.78113245,95601.0,95591.0,0.00118028]
[1735224633557,0.209222,95592.0,95591.0,0.00012404]
[1735224633748,0.359222,95592.0,95591.0,0.00012404]
[1735224633956,0.36399747,95592.0,95591.0,0.00012404]
[1735224634423,0.00477547,95592.0,95591.0,0.00012404]
[1735224634624,0.00477547,95592.0,95591.0,0.10411036]
[1735224634828,0.005,95592.0,95591.0,0.00012404]
[1735224635241,0.03072888,95592.0,95591.0,0.00012404]
[1735224635437,0.00977888,95592.0,95591.0,0.10411036]
[1735224635636,0.00477888,95592.0,95591.0,0.10411036]
[1735224635901,0.15,95599.0,95591.0,0.10411036]
[1735224636113,0.15,95600.0,95592.0,0.10398632]
[1735224636368,0.0047787,95598.0,95592.0,0.10398632]
[1735224636577,0.00477978,95599.0,95593.0,0.0765]
[1735224636784,0.67192,95600.0,95594.0,0.10398632]
[1735224636990,0.15,95596.0,95592.0,0.00059025]
[1735224637189,0.15,95593.0,95592.0,0.00059025]
[1735224637394,0.67192,95600.0,95592.0,0.00059025]
[1735224637395,0.00477978,95595.0,95592.0,0.00059025]
[1735224637727,0.00477994,95593.0,95592.0,0.00159025]
[1735224637927,0.15,95596.0,95592.0,0.00059025]
[1735224638037,0.00477996,95593.0,95592.0,0.00059025]
[1735224638237,0.154,95596.0,95592.0,0.00059025]
[1735224638489,0.00475475,95593.0,95592.0,0.00059025]
[1735224638685,0.15,95594.0,95592.0,0.00059025]
[1735224638861,0.15,95592.0,95591.0,0.00012404]
[1735224639256,0.15475473,95592.0,95591.0,0.10411036]
[1735224640125,0.00475473,95592.0,95591.0,0.10511036]
[1735224640330,0.005,95595.0,95591.0,0.10511036]
[1735224640523,0.52192,95600.0,95591.0,0.10511036]
[1735224640524,0.00475457,95594.0,95592.0,0.13854346]